bitfinex/quotes_BTCUSD_20230118
["timestamp","ask_amount","ask_price","bid_price","bid_amount"]
[1674082515707,0.480725,20802.0,20799.0,0.107]
[1674082517953,0.330049,20801.0,20799.0,0.107]
[1674082518191,0.480725,20802.0,20799.0,0.107]
[1674082518467,0.59582964,20802.0,20799.0,0.107]
[1674082518691,0.317365,20801.0,20799.0,0.107]
[1674082519013,0.480725,20802.0,20799.0,0.107]
[1674082519677,0.326505,20801.0,20799.0,0.1]
[1674082519920,0.59582964,20802.0,20799.0,0.107]
[1674082520153,0.59582964,20802.0,20799.0,0.1]
[1674082520393,0.320166,20801.0,20799.0,0.107]
[1674082520651,0.480725,20802.0,20799.0,0.107]
[1674082521874,0.324832,20801.0,20799.0,0.107]
[1674082522110,0.20247,20800.0,20799.0,0.1]
[1674082522394,0.480725,20802.0,20799.0,0.1155]
[1674082523138,0.59580364,20803.0,20799.0,0.1085]
[1674082523382,0.71140364,20803.0,20799.0,0.2155]
[1674082523661,0.71140364,20803.0,20795.0,0.11430628]
[1674082523662,0.24038,20800.0,20795.0,0.11430628]
[1674082523909,0.1154,20796.0,20793.0,0.1]
[1674082524158,0.87761197,20795.0,20793.0,0.1]
[1674082524423,0.51921597,20794.0,20793.0,0.1]
[1674082524660,0.324895,20794.0,20793.0,0.1]
[1674082526192,0.414895,20794.0,20793.0,0.1]
[1674082526660,0.895802,20794.0,20793.0,0.1]
[1674082527169,1.376709,20794.0,20793.0,0.1]
[1674082527416,1.286709,20794.0,20793.0,0.1]
[1674082527669,1.376709,20794.0,20793.0,0.1]
[1674082530378,1.606809,20794.0,20793.0,0.1]
[1674082531641,1.516809,20794.0,20793.0,0.1]
[1674082531896,1.607809,20794.0,20793.0,0.1]
[1674082534809,1.607809,20794.0,20793.0,0.095]
[1674082535951,1.723409,20794.0,20793.0,0.095]
[1674082537006,2.023409,20794.0,20793.0,0.095]
[1674082537260,1.932409,20794.0,20793.0,0.095]
[1674082537538,1.723409,20794.0,20793.0,0.095]
[1674082538346,2.37272986,20794.0,20793.0,0.095]
[1674082538601,1.723409,20794.0,20793.0,0.095]
[1674082539133,2.50061069,20794.0,20791.0,0.1]
[1674082539401,0.2312,20792.0,20791.0,0.1]
[1674082539661,1.989432,20792.0,20791.0,0.1]
[1674082540961,2.080432,20792.0,20791.0,0.095]
[1674082542790,1.964832,20792.0,20791.0,0.095]
[1674082543299,1.649462,20792.0,20791.0,0.095]
[1674082543564,1.96735,20792.0,20791.0,0.095]
[1674082543824,1.649462,20792.0,20791.0,0.095]
[1674082544078,1.959056,20792.0,20791.0,0.095]
[1674082544656,1.649462,20792.0,20791.0,0.095]
[1674082544926,1.959056,20792.0,20791.0,0.095]
[1674082545181,1.649462,20792.0,20791.0,0.095]
[1674082545465,1.959056,20792.0,20791.0,0.095]
[1674082546032,1.533862,20792.0,20791.0,0.095]
[1674082546542,1.863027,20792.0,20791.0,0.095]
[1674082546803,1.382985,20792.0,20791.0,0.095]
[1674082547055,0.961908,20792.0,20791.0,0.095]
[1674082547332,1.043908,20792.0,20791.0,0.096]
[1674082547603,1.043908,20792.0,20791.0,0.095]
[1674082547604,0.961908,20792.0,20791.0,0.095]
[1674082547856,1.289118,20792.0,20791.0,0.095]
[1674082548283,1.043908,20792.0,20791.0,0.096]
[1674082548469,1.371118,20792.0,20791.0,0.096]
[1674082548986,1.289118,20792.0,20791.0,0.095]
[1674082549253,1.371118,20792.0,20791.0,0.096]
[1674082549494,1.289118,20792.0,20791.0,0.095]
[1674082549739,1.371118,20792.0,20791.0,0.096]
[1674082550213,1.486718,20792.0,20791.0,0.096]
[1674082559887,1.159508,20792.0,20791.0,0.096]
[1674082560130,1.479539,20792.0,20791.0,0.096]
[1674082560892,1.159508,20792.0,20791.0,0.096]
[1674082561128,1.490642,20792.0,20791.0,0.096]
[1674082563612,1.355676,20792.0,20791.0,0.096]
[1674082564946,1.159508,20792.0,20791.0,0.096]
[1674082565946,1.043908,20792.0,20791.0,0.096]
[1674082567671,1.373502,20792.0,20791.0,0.096]
[1674082567916,1.241616,20792.0,20791.0,0.096]
[1674082568158,1.043908,20792.0,20791.0,0.096]
[1674082568642,1.364324,20792.0,20791.0,0.096]
[1674082569613,1.043908,20792.0,20791.0,0.096]
[1674082570356,1.349358,20792.0,20791.0,0.096]
[1674082570837,1.043908,20792.0,20791.0,0.096]
[1674082571645,1.362389,20792.0,20791.0,0.096]
[1674082572128,1.043908,20792.0,20791.0,0.096]
[1674082572364,1.46135064,20792.0,20791.0,0.096]
[1674082573120,1.346246,20792.0,20791.0,0.096]
[1674082574333,1.46135064,20792.0,20791.0,0.096]
[1674082574589,1.346246,20792.0,20791.0,0.096]
[1674082575806,1.461646,20792.0,20791.0,0.096]
[1674082577070,1.159308,20792.0,20791.0,0.096]
[1674082577570,1.476954,20792.0,20791.0,0.096]
[1674082577816,1.159308,20792.0,20791.0,0.096]
[1674082578057,1.493566,20792.0,20791.0,0.096]
[1674082578311,1.159308,20792.0,20791.0,0.096]
[1674082578564,1.474263,20792.0,20791.0,0.096]
[1674082579063,1.473963,20792.0,20791.0,0.096]
[1674082580301,1.159008,20792.0,20791.0,0.096]
[1674082583560,1.043908,20792.0,20791.0,0.096]
[1674082583800,0.562954,20792.0,20791.0,0.424175]
[1674082584058,0.56287469,20792.0,20791.0,0.724175]
[1674082585077,0.082,20792.0,20791.0,0.096]
[1674082585328,0.082,20792.0,20791.0,0.2113]
[1674082585578,0.082,20792.0,20791.0,0.837035]
[1674082586057,0.082,20792.0,20791.0,0.95134128]
[1674082586609,0.082,20792.0,20791.0,0.837035]
[1674082586854,0.480856,20797.0,20792.0,0.1]
[1674082587099,0.480856,20797.0,20793.0,0.338105]
[1674082587335,0.480856,20797.0,20793.0,0.0085]
[1674082588320,0.555856,20797.0,20793.0,0.3105]
[1674082593215,0.555856,20797.0,20793.0,0.74293574]
[1674082596047,0.555856,20797.0,20793.0,0.85853574]
[1674082597342,0.75017697,20797.0,20793.0,0.85853574]
[1674082597620,0.555856,20797.0,20793.0,0.4261]
[1674082599773,0.555856,20797.0,20794.0,0.1]
[1674082600558,0.480856,20797.0,20794.0,0.1]
[1674082600796,0.480856,20797.0,20793.0,1.33746474]
[1674082601045,0.75017697,20797.0,20794.0,0.002]
[1674082601304,0.555856,20797.0,20794.0,0.002]
[1674082601582,0.555856,20797.0,20794.0,0.102]
[1674082602339,0.480856,20797.0,20793.0,1.33746474]
[1674082602595,0.67917697,20797.0,20793.0,1.35246474]
[1674082602854,0.67517697,20797.0,20793.0,0.905029]
[1674082603122,0.72617697,20797.0,20794.0,0.002]
[1674082603384,0.480856,20797.0,20793.0,0.905029]
[1674082603636,0.67917697,20797.0,20793.0,0.920029]
[1674082603906,0.67517697,20797.0,20793.0,0.905029]
[1674082604174,0.531856,20797.0,20794.0,0.002]
[1674082604445,0.480856,20797.0,20793.0,0.905029]
[1674082604685,0.67517697,20797.0,20793.0,0.905029]
[1674082604943,0.67517697,20797.0,20793.0,0.605029]
[1674082605484,0.67917697,20797.0,20793.0,0.620029]
[1674082605732,0.484856,20797.0,20793.0,0.620029]
[1674082605990,0.600056,20797.0,20793.0,0.504429]
[1674082606243,0.59997464,20797.0,20793.0,0.504429]
[1674082612048,0.59997464,20797.0,20794.0,0.3]
[1674082612344,0.59997464,20797.0,20793.0,0.504429]
[1674082612866,0.59997464,20797.0,20793.0,0.604429]
[1674082613122,0.59997464,20797.0,20794.0,0.3]
[1674082613697,0.59997464,20797.0,20793.0,0.504429]
[1674082613961,0.79429561,20797.0,20793.0,0.504429]
[1674082614220,0.79029561,20797.0,20793.0,0.489429]
[1674082614481,0.84129561,20797.0,20794.0,0.002]
[1674082614735,0.59597464,20797.0,20793.0,0.489429]
[1674082615028,0.79429561,20797.0,20793.0,0.504429]
[1674082615550,0.59997464,20797.0,20793.0,0.504429]
[1674082619949,0.79429561,20797.0,20793.0,0.504429]
[1674082620212,0.327005,20796.0,20793.0,0.504429]
[1674082620470,0.200297,20795.0,20793.0,0.504429]
[1674082620737,0.59997464,20797.0,20793.0,0.504429]
[1674082621550,0.329772,20796.0,20793.0,0.504429]
[1674082621768,0.19753,20795.0,20793.0,0.504429]
[1674082622021,0.312547,20794.0,20793.0,0.489429]
[1674082622299,0.004,20795.0,20793.0,0.504429]
[1674082623356,0.71107928,20797.0,20793.0,0.489429]
[1674082623616,0.71107928,20797.0,20793.0,0.504429]
[1674082623617,0.004,20794.0,20793.0,0.504429]
[1674082623904,0.91479928,20797.0,20793.0,0.489429]
[1674082624169,0.004,20795.0,20793.0,0.504429]
[1674082624935,0.330739,20794.0,20793.0,0.489429]
[1674082625208,0.71507928,20797.0,20793.0,0.90433983]
[1674082625416,0.71107928,20797.0,20793.0,0.88933983]
[1674082625698,0.004,20795.0,20793.0,0.90433983]
[1674082625957,0.71107928,20797.0,20793.0,0.88933983]
[1674082626212,0.71107928,20797.0,20793.0,0.78933983]
[1674082626472,0.004,20794.0,20793.0,0.80433983]
[1674082626732,0.004,20794.0,20793.0,0.78933983]
[1674082627003,0.004,20794.0,20793.0,0.80433983]
[1674082627528,0.004,20794.0,20793.0,0.90433983]
[1674082627828,0.71107928,20797.0,20793.0,0.88933983]
[1674082628153,0.71507928,20797.0,20793.0,0.80433983]
[1674082628341,0.324584,20796.0,20793.0,0.80433983]
[1674082628600,0.71107928,20797.0,20793.0,0.78933983]
[1674082628877,0.004,20794.0,20793.0,0.80433983]
[1674082629143,0.71107928,20797.0,20793.0,0.48933983]
[1674082629401,0.71507928,20797.0,20793.0,0.50433983]
[1674082629619,0.307177,20796.0,20793.0,0.50433983]
[1674082629905,0.71507928,20797.0,20793.0,0.50433983]
[1674082630173,0.31701,20796.0,20793.0,0.50433983]
[1674082630432,0.210292,20795.0,20793.0,0.50433983]
[1674082630689,0.884007,20797.0,20793.0,0.48933983]
[1674082630937,0.935007,20797.0,20793.0,0.49133983]
[1674082631189,0.330928,20796.0,20793.0,0.48933983]
[1674082631445,0.196374,20795.0,20793.0,0.49133983]
[1674082631708,0.884007,20797.0,20793.0,0.48933983]
[1674082631971,0.935007,20797.0,20793.0,0.49133983]
[1674082632221,0.884007,20797.0,20793.0,0.48933983]
[1674082632525,0.385604,20796.0,20793.0,0.49133983]
[1674082632785,0.192698,20795.0,20793.0,0.48933983]
[1674082633061,0.76207928,20797.0,20793.0,0.49133983]
[1674082633781,0.76207928,20797.0,20793.0,0.48933983]
[1674082634035,0.051,20795.0,20793.0,0.49133983]
[1674082634305,0.051,20795.0,20794.0,0.3]
[1674082634596,0.051,20795.0,20794.0,0.1085]
[1674082634810,0.051,20795.0,20794.0,0.4085]
[1674082635085,0.1662,20797.0,20794.0,0.4085]
[1674082635340,0.1152,20797.0,20795.0,0.3]
[1674082635910,0.075,20795.0,20794.0,0.591406]
[1674082636167,0.075,20795.0,20794.0,0.891406]
[1674082636675,0.59593364,20798.0,20794.0,0.889406]
[1674082636951,0.075,20797.0,20795.0,0.3105]
[1674082637218,0.075,20797.0,20795.0,0.3085]
[1674082637442,0.480829,20798.0,20795.0,0.3085]
[1674082637956,0.075,20797.0,20795.0,0.0105]
[1674082638257,0.480829,20798.0,20795.0,0.0085]
[1674082638522,0.555829,20798.0,20795.0,0.0105]
[1674082638748,0.480829,20798.0,20795.0,0.0085]
[1674082639498,0.23666975,20798.0,20795.0,0.0085]
[1674082639770,0.075,20797.0,20795.0,0.3105]
[1674082640006,0.88444436,20799.0,20795.0,0.3085]
[1674082640269,0.075,20798.0,20795.0,0.3105]
[1674082640529,0.075,20798.0,20795.0,0.0105]
[1674082640794,0.075,20798.0,20795.0,0.3105]
[1674082641133,0.71151664,20799.0,20795.0,0.3085]
[1674082641304,0.78651664,20799.0,20795.0,0.3105]
[1674082641554,0.71151664,20799.0,20795.0,0.789384]
[1674082642065,0.075,20798.0,20795.0,0.791384]
[1674082642837,0.075,20798.0,20795.0,1.272268]
[1674082643102,0.596412,20799.0,20795.0,1.270268]
[1674082643383,0.596412,20799.0,20795.0,1.70298246]
[1674082643683,0.075,20798.0,20795.0,1.70498246]
[1674082643950,0.1156,20799.0,20795.0,1.270268]
[1674082644224,0.1906,20799.0,20795.0,1.70498246]
[1674082644477,1.23369464,20800.0,20796.0,0.1]
[1674082644478,1.00379,20800.0,20796.0,0.1]
[1674082644759,0.075,20798.0,20796.0,1.01356546]
[1674082645029,0.075,20798.0,20797.0,0.3085]
[1674082645283,0.075,20798.0,20797.0,0.632567]
[1674082646622,1.00379,20800.0,20797.0,0.632567]
[1674082646899,0.075,20798.0,20797.0,0.3105]
[1674082647423,0.075,20798.0,20797.0,0.624698]
[1674082652302,0.075,20798.0,20797.0,0.324698]
[1674082652586,0.075,20798.0,20797.0,0.3105]
[1674082652856,0.075,20798.0,20797.0,0.636399]
[1674082654387,0.075,20798.0,20797.0,0.336399]
[1674082654640,0.075,20798.0,20797.0,0.0105]
[1674082654911,0.075,20798.0,20797.0,0.628226]
[1674082655683,0.075,20798.0,20797.0,0.328226]
[1674082656488,0.075,20798.0,20797.0,0.628226]
[1674082658401,0.075,20798.0,20797.0,2.13821646]
[1674082659517,0.075,20798.0,20797.0,2.23821646]
[1674082661336,0.075,20798.0,20797.0,2.13821646]
[1674082661856,0.075,20798.0,20797.0,2.23821646]
[1674082662374,0.07490592,20798.0,20797.0,2.23821646]
[1674082663202,0.07490592,20798.0,20797.0,2.35252274]
[1674082663458,0.07490592,20798.0,20797.0,2.23821646]
[1674082663714,0.07490592,20798.0,20797.0,2.4169456]
[1674082663976,0.07490592,20798.0,20797.0,2.38473417]
[1674082665011,0.07490592,20798.0,20797.0,2.49953417]
[1674082665272,0.07490592,20798.0,20797.0,2.67099359]
[1674082665528,0.07490592,20798.0,20797.0,2.66899359]
[1674082665796,0.01456975,20801.0,20797.0,2.66899359]
[1674082666078,0.007,20798.0,20797.0,1.53969371]
[1674082666324,0.007,20798.0,20797.0,2.52432817]
[1674082666837,0.01456975,20801.0,20797.0,3.46308928]
[1674082667107,0.01456975,20801.0,20800.0,0.2312]
[1674082667408,0.01456975,20801.0,20800.0,1.30054146]
[1674082667625,0.01456975,20801.0,20800.0,3.28804032]
[1674082667881,0.01456975,20801.0,20800.0,3.25582889]
[1674082668138,0.02056975,20801.0,20800.0,3.25582889]
[1674082668394,0.01456975,20801.0,20800.0,3.25582889]
[1674082668675,0.01756975,20801.0,20800.0,3.28082889]
[1674082669182,0.01756975,20801.0,20800.0,4.16283058]
[1674082669451,0.01456975,20801.0,20800.0,4.25196946]
[1674082669717,0.02056975,20801.0,20800.0,4.45242888]
[1674082670021,0.02056975,20801.0,20800.0,4.28096946]
[1674082671323,0.01456975,20801.0,20800.0,4.25196946]
[1674082671577,0.02056975,20801.0,20800.0,4.28096946]
[1674082672662,0.02056975,20801.0,20800.0,5.83872888]
[1674082672926,0.02056975,20801.0,20800.0,5.66726946]
[1674082673180,0.02056975,20801.0,20800.0,5.83872888]
[1674082673429,0.02056975,20801.0,20800.0,5.66726946]
[1674082673685,0.02037455,20801.0,20800.0,6.47472548]
[1674082674180,0.02037455,20801.0,20800.0,5.99666109]
[1674082674188,0.02037455,20801.0,20800.0,6.16812051]
[1674082674425,0.02037455,20801.0,20800.0,5.99666109]
[1674082674674,0.02017935,20801.0,20800.0,5.99666109]
[1674082674941,0.02017935,20801.0,20800.0,6.19497474]
[1674082675222,0.02017935,20801.0,20800.0,6.30911362]
[1674082675711,0.01998415,20801.0,20800.0,6.30911362]
[1674082675966,0.01998415,20801.0,20800.0,5.50247474]
[1674082676219,0.01998415,20801.0,20800.0,5.47026331]
[1674082676489,0.01978895,20801.0,20800.0,5.47026331]
[1674082676733,0.01978895,20801.0,20800.0,5.50247474]
[1674082677258,0.01978895,20801.0,20800.0,5.61661362]
[1674082677525,0.01959375,20801.0,20800.0,5.61661362]
[1674082678270,0.01959375,20801.0,20800.0,5.78807304]
[1674082678518,0.01456975,20803.0,20802.0,0.2901]
[1674082678791,0.01456975,20803.0,20802.0,3.74362346]
[1674082679022,0.01456975,20803.0,20802.0,3.77583489]
[1674082680565,0.01956975,20803.0,20802.0,3.81083489]
[1674082683394,0.01956975,20803.0,20802.0,3.57963489]
[1674082684161,0.01956975,20803.0,20802.0,3.14692043]
[1674082684650,0.01956975,20803.0,20802.0,3.57963489]
[1674082684904,0.01956975,20803.0,20802.0,3.14692043]
[1674082685465,0.01956975,20803.0,20802.0,3.57963489]
[1674082686934,0.01956975,20803.0,20802.0,3.14692043]
[1674082687199,0.01956975,20803.0,20802.0,3.57963489]
[1674082688251,0.01956975,20803.0,20802.0,3.14692043]
[1674082688499,0.01956975,20803.0,20802.0,3.57963489]
[1674082692118,0.01433944,20805.0,20803.0,0.10276349]
[1674082692377,0.01433944,20805.0,20804.0,1.776807]
[1674082692649,0.01433944,20805.0,20804.0,2.14122986]
[1674082692927,0.01433944,20805.0,20804.0,2.10901843]
[1674082693276,0.01933944,20805.0,20804.0,2.10901843]
[1674082693771,0.02433944,20805.0,20804.0,2.14801843]
[1674082694307,0.01933944,20805.0,20804.0,2.14901843]
[1674082694543,0.01933944,20805.0,20804.0,2.26461843]
[1674082694801,0.01933944,20805.0,20804.0,2.36461843]
[1674082695320,0.01933944,20805.0,20804.0,2.79733289]
[1674082695937,0.01933944,20805.0,20804.0,2.26461843]
[1674082696123,0.01933944,20805.0,20804.0,2.81134496]
[1674082696377,0.01933944,20805.0,20804.0,2.69733289]
[1674082696633,0.01933944,20805.0,20804.0,2.26461843]
[1674082696900,0.01933944,20805.0,20804.0,2.332407]
[1674082697414,0.01933944,20805.0,20804.0,2.232407]
[1674082697668,0.01933944,20805.0,20804.0,2.26461843]
[1674082697939,0.01933944,20805.0,20804.0,2.3786305]
[1674082698472,0.01933944,20805.0,20804.0,2.4786305]
[1674082699529,0.01933944,20805.0,20804.0,3.38628914]
[1674082699844,0.01933944,20805.0,20804.0,1.83024907]
[1674082700047,0.01933944,20805.0,20804.0,3.27227707]
[1674082700305,0.01933944,20805.0,20804.0,3.3863317]
[1674082700568,0.01933944,20805.0,20804.0,3.27227707]
[1674082700832,0.01933944,20805.0,20804.0,3.50088963]
[1674082701125,0.01933944,20805.0,20804.0,3.79098963]
[1674082701346,0.01933944,20805.0,20804.0,3.56237707]
[1674082701602,0.01933944,20805.0,20804.0,3.79098963]
[1674082702902,0.01933944,20805.0,20804.0,3.61953021]
[1674082703158,0.01933944,20805.0,20804.0,3.79066627]
[1674082703649,0.01933944,20805.0,20804.0,3.61953021]
[1674082704214,0.01933944,20805.0,20804.0,3.90530219]
[1674082705027,0.01933944,20805.0,20804.0,3.61953021]
[1674082705784,0.01933944,20805.0,20804.0,3.67668963]
[1674082706059,0.01933944,20805.0,20804.0,3.79228963]
[1674082707335,0.01933944,20805.0,20804.0,4.26949132]
[1674082709650,0.01933944,20805.0,20804.0,3.98371934]
[1674082710514,0.01933944,20805.0,20804.0,4.26919585]
[1674082710770,0.01933944,20805.0,20804.0,3.98371934]
[1674082712006,0.00576975,20806.0,20805.0,0.3901]
[1674082712261,0.00576975,20806.0,20805.0,2.6388802]
[1674082712537,0.00576975,20806.0,20805.0,2.8423996]
[1674082712776,0.00576975,20806.0,20805.0,2.67109163]
[1674082713028,0.00576975,20806.0,20805.0,2.9566276]
[1674082713285,0.00976975,20806.0,20805.0,3.0006276]
[1674082714048,0.00976975,20806.0,20805.0,3.43334206]
[1674082714316,0.00576975,20806.0,20805.0,3.38934206]
[1674082714567,0.00976975,20806.0,20805.0,3.0006276]
[1674082715085,0.00976975,20806.0,20805.0,2.71509163]
[1674082715351,0.00976975,20806.0,20805.0,3.14780609]
[1674082715617,0.00976975,20806.0,20805.0,2.71509163]
[1674082715874,0.00976975,20806.0,20805.0,3.14780609]
[1674082716127,0.00976975,20806.0,20805.0,3.43334206]
[1674082716690,0.00976975,20806.0,20805.0,3.14780609]
[1674082716900,0.00976975,20806.0,20805.0,3.43334206]
[1674082717682,0.00976975,20806.0,20805.0,2.88639454]
[1674082717921,0.00976975,20806.0,20805.0,2.71509163]
[1674082718175,0.00976975,20806.0,20805.0,3.14780609]
[1674082718433,0.00976975,20806.0,20805.0,3.43334206]
[1674082719287,0.00976975,20806.0,20805.0,3.20493662]
[1674082719981,0.00976975,20806.0,20805.0,2.77222216]
[1674082720235,0.00976975,20806.0,20805.0,2.61509207]
[1674082720477,0.00976975,20806.0,20805.0,2.786405]
[1674082720736,0.00976975,20806.0,20805.0,2.90062804]
[1674082720990,0.00976975,20806.0,20805.0,2.61509207]
[1674082721258,0.00976975,20806.0,20805.0,2.78639891]
[1674082722094,0.00976975,20806.0,20805.0,2.78638192]
[1674082722351,0.00976975,20806.0,20805.0,2.78638579]
[1674082723440,0.00976975,20806.0,20805.0,2.78638061]
[1674082723698,0.00976975,20806.0,20805.0,2.90062804]
[1674082723960,0.00976975,20806.0,20805.0,2.61509207]
[1674082724243,0.00976975,20806.0,20805.0,2.90062804]
[1674082724777,0.00976975,20806.0,20805.0,2.3806987]
[1674082725024,0.00976975,20806.0,20805.0,1.79171346]
[1674082725283,0.00976975,20806.0,20805.0,1.46022946]
[1674082725577,0.00976975,20806.0,20805.0,1.45172946]
[1674082726127,0.12536975,20806.0,20805.0,1.45172946]
[1674082726639,0.12536975,20806.0,20805.0,1.46022946]
[1674082727373,0.12536975,20806.0,20805.0,1.313806]
[1674082730290,0.12536975,20806.0,20805.0,1.42801803]
[1674082731625,0.12536975,20806.0,20805.0,1.94893561]
[1674082731909,0.12536975,20806.0,20805.0,2.28243261]
[1674082732202,0.1252999,20806.0,20805.0,2.11112598]
[1674082733218,0.1252999,20806.0,20805.0,1.77762898]
[1674082733741,0.1252999,20806.0,20805.0,2.27894886]
[1674082734004,0.1252999,20806.0,20805.0,2.38545795]
[1674082735077,0.03108411,20806.0,20805.0,2.15705207]
[1674082735570,0.03108411,20806.0,20805.0,1.83475907]
[1674082736167,0.01410525,20807.0,20805.0,2.06336565]
[1674082736449,0.01410525,20807.0,20806.0,0.82969153]
[1674082736722,0.01410525,20807.0,20806.0,1.79095204]
[1674082737249,0.01410525,20807.0,20806.0,2.10914122]
[1674082737511,0.01810525,20807.0,20806.0,1.67664176]
[1674082737795,0.01410525,20807.0,20806.0,2.00542676]
[1674082738047,0.01410525,20807.0,20806.0,1.90524834]
[1674082738296,0.01410525,20807.0,20806.0,2.23118534]
[1674082738553,0.01810525,20807.0,20806.0,1.95324834]
[1674082738802,0.01810525,20807.0,20806.0,2.64778941]
[1674082739329,0.01810525,20807.0,20806.0,2.32710041]
[1674082739616,0.01810525,20807.0,20806.0,2.46987875]
[1674082739864,0.01810525,20807.0,20806.0,2.44117172]
[1674082740148,0.01810525,20807.0,20806.0,2.47815075]
[1674082740424,0.01810525,20807.0,20806.0,2.76712772]
[1674082740676,0.01810525,20807.0,20806.0,2.48159175]
[1674082740931,0.01810525,20807.0,20806.0,2.65305263]
[1674082741982,0.01810525,20807.0,20806.0,2.32709663]
[1674082742249,0.01810525,20807.0,20806.0,2.48168775]
[1674082742503,0.01810525,20807.0,20806.0,2.65315546]
[1674082742774,0.01810525,20807.0,20806.0,2.32710346]
[1674082743238,0.01810525,20807.0,20806.0,2.65689346]
[1674082743240,0.01810525,20807.0,20806.0,2.48542575]
[1674082743757,0.01810525,20807.0,20806.0,2.77096172]
[1674082744527,0.01810525,20807.0,20806.0,2.54235514]
[1674082744794,0.01810525,20807.0,20806.0,2.77092708]
[1674082745316,0.01810525,20807.0,20806.0,2.54235514]
[1674082747716,0.01810525,20807.0,20806.0,2.52515215]
[1674082750161,0.01810525,20807.0,20806.0,2.52533172]
[1674082751113,0.01810525,20807.0,20806.0,2.23961618]
[1674082751326,0.01810525,20807.0,20806.0,2.52532878]
[1674082752589,0.01810525,20807.0,20806.0,2.75390857]
[1674082752847,0.01810525,20807.0,20806.0,2.52532878]
[1674082753371,0.01810525,20807.0,20806.0,2.75389039]
[1674082754197,0.01810525,20807.0,20806.0,2.52532878]
[1674082754466,0.01810525,20807.0,20806.0,2.46818474]
[1674082754727,0.01810525,20807.0,20806.0,2.75389734]
[1674082755003,0.01810525,20807.0,20806.0,2.46818474]
[1674082755273,0.01810525,20807.0,20806.0,2.75389734]
[1674082756118,0.01810525,20807.0,20806.0,2.46818474]
[1674082756650,0.01810525,20807.0,20806.0,2.63960959]
[1674082757184,0.01810525,20807.0,20806.0,2.08125694]
[1674082757474,0.01810525,20807.0,20806.0,2.19554971]
[1674082757728,0.01810525,20807.0,20806.0,2.3098255]
[1674082758247,0.01810525,20807.0,20806.0,2.40135994]
[1674082758500,0.01810525,20807.0,20806.0,2.50770366]
[1674082758905,0.01810525,20807.0,20806.0,2.19554866]
[1674082759819,0.01810525,20807.0,20806.0,2.51297466]
[1674082760339,0.01810525,20807.0,20806.0,2.50498984]
[1674082760591,0.01810525,20807.0,20806.0,2.39069812]
[1674082761111,0.01810525,20807.0,20806.0,2.61926668]
[1674082761380,0.01810525,20807.0,20806.0,2.30184068]
[1674082761639,0.01810525,20807.0,20806.0,2.38522012]
[1674082762400,0.01810525,20807.0,20806.0,2.18781677]
[1674082762705,0.01810525,20807.0,20806.0,2.07354735]
[1674082763206,0.01810525,20807.0,20806.0,2.63368091]
[1674082763744,0.01810525,20807.0,20806.0,2.40511235]
[1674082764075,0.01810525,20807.0,20806.0,2.07354735]
[1674082764263,0.01810525,20807.0,20806.0,2.187777]
[1674082764527,0.01810525,20807.0,20806.0,2.07354735]
[1674082764784,0.01810525,20807.0,20806.0,2.74489775]
[1674082765045,0.01810525,20807.0,20806.0,2.45918515]
[1674082765303,0.01810525,20807.0,20806.0,2.46386515]
[1674082765559,0.01810525,20807.0,20806.0,2.63522059]
[1674082765809,0.01810525,20807.0,20806.0,2.30204059]
[1674082766069,0.01810525,20807.0,20806.0,2.44716915]
[1674082766649,0.01810525,20807.0,20806.0,2.45221915]
[1674082766842,0.01810525,20807.0,20806.0,2.73793175]
[1674082767122,0.01810525,20807.0,20806.0,2.45221915]
[1674082767377,0.01810525,20807.0,20806.0,2.13068515]
[1674082767625,0.01810525,20807.0,20806.0,2.41639775]
[1674082767902,0.01810525,20807.0,20806.0,2.75113575]
[1674082768658,0.01810525,20807.0,20806.0,2.75447775]
[1674082768911,0.01810525,20807.0,20806.0,2.30208434]
[1674082769435,0.01810525,20807.0,20806.0,2.63470634]
[1674082769688,0.01810525,20807.0,20806.0,2.46330715]
[1674082769941,0.01737821,20807.0,20806.0,2.30209487]
[1674082771281,0.01737821,20807.0,20806.0,2.76205316]
[1674082771550,0.01737821,20807.0,20806.0,2.41631316]
[1674082772083,0.01737821,20807.0,20806.0,2.30204969]
[1674082772337,0.01737821,20807.0,20806.0,2.41631316]
[1674082772617,0.01737821,20807.0,20806.0,2.63238813]
[1674082772879,0.01737821,20807.0,20806.0,2.46092856]
[1674082773136,0.01737821,20807.0,20806.0,2.13060056]
[1674082773662,0.01737821,20807.0,20806.0,2.3020618]
[1674082774529,0.01737821,20807.0,20806.0,2.30206478]
[1674082774690,0.01737821,20807.0,20806.0,2.13060056]
[1674082774919,0.01737821,20807.0,20806.0,2.30203909]
[1674082776201,0.01737821,20807.0,20806.0,2.13060056]
[1674082776735,0.01737821,20807.0,20806.0,2.46512056]
[1674082776998,0.01737821,20807.0,20806.0,2.75083316]
[1674082777256,0.01737821,20807.0,20806.0,2.73105016]
[1674082777548,0.01737821,20807.0,20806.0,2.5024816]
[1674082777813,0.01737821,20807.0,20806.0,2.30207928]
[1674082778069,0.01737821,20807.0,20806.0,2.30205002]
[1674082778384,0.01737821,20807.0,20806.0,2.73824042]
[1674082779173,0.01737821,20807.0,20806.0,2.76047842]
[1674082779450,0.01737821,20807.0,20806.0,2.41632742]
[1674082780184,0.01737821,20807.0,20806.0,2.4987056]
[1674082780708,0.01737821,20807.0,20806.0,2.212993]
[1674082780966,0.01737821,20807.0,20806.0,2.49865507]
[1674082781237,0.01737821,20807.0,20806.0,2.212993]
[1674082781495,0.01737821,20807.0,20806.0,2.49864712]
[1674082781748,0.01737821,20807.0,20806.0,2.212993]
[1674082782007,0.01737821,20807.0,20806.0,2.59857999]
[1674082782280,0.01737821,20807.0,20806.0,2.49857999]
[1674082783302,0.01737821,20807.0,20806.0,2.18761899]
[1674082783583,0.01737821,20807.0,20806.0,2.50560599]
[1674082784952,0.01737821,20807.0,20806.0,2.41608393]
[1674082785134,0.01737821,20807.0,20806.0,2.73616593]
[1674082785391,0.01737821,20807.0,20806.0,2.41608393]
[1674082785675,0.01737821,20807.0,20806.0,2.50358399]
[1674082786989,0.00499932,20807.0,20806.0,2.217997]
[1674082789303,0.00499932,20807.0,20806.0,2.235807]
[1674082789562,0.00499932,20807.0,20806.0,1.902032]
[1674082789822,0.00499932,20807.0,20806.0,2.41600399]